fUSD/lending_fUSD_20241227
["ID","MTS","AMOUNT","RATE_DAILY","PERIOD"]
[346872212,1735336243859,-500.0,0.00010738,2]
[346872213,1735336243872,-500.0,0.00010738,2]
[346872214,1735336243883,-500.0,0.00010738,2]
[346872215,1735336243894,-500.0,0.00010738,2]
[346872216,1735336243904,-500.0,0.00010738,2]
[346872217,1735336243915,-884.78,0.00010738,2]
[346872218,1735336243926,-500.0,0.00010738,2]
[346872219,1735336243937,-534.19,0.00010738,2]
[346872220,1735336243947,-500.0,0.00010738,2]
[346872221,1735336243958,-619.0,0.00010738,2]
[346872222,1735336243968,-642.43,0.00010738,2]
[346872223,1735336243979,-647.9,0.00010738,2]
[346872224,1735336243989,-529.8,0.00010738,2]
[346872225,1735336244000,-500.0,0.00010738,2]
[346872226,1735336244010,-619.96,0.00010738,2]
[346872227,1735336244022,-697.56,0.00010738,2]
[346872228,1735336244032,-500.0,0.00010738,2]
[346872229,1735336244043,-500.0,0.00010738,2]
[346872230,1735336244054,-644.16,0.00010738,2]
[346872231,1735336244065,-851.46,0.00010738,2]
[346872232,1735336244075,-657.13,0.00010738,2]
[346872233,1735336244086,-500.0,0.00010738,2]
[346872234,1735336244096,-500.0,0.00010738,2]
[346872235,1735336244106,-519.03,0.00010738,2]
[346872236,1735336244117,-500.0,0.00010738,2]
[346872237,1735336244127,-500.0,0.00010738,2]
[346872238,1735336244138,-500.0,0.00010738,2]
[346872239,1735336244150,-500.0,0.00010738,2]
[346872240,1735336244160,-500.0,0.00010738,2]
[346872241,1735336244171,-500.0,0.00010738,2]
[346872242,1735336244182,-500.0,0.00010738,2]
[346872243,1735336244193,-603.78,0.00010738,2]
[346872244,1735336244203,-901.23,0.00010738,2]
[346872245,1735336244214,-500.0,0.00010738,2]
[346872246,1735336244227,-500.0,0.00010738,2]
[346872247,1735336244238,-640.42,0.00010738,2]
[346872248,1735336244249,-562.23,0.00010738,2]
[346872249,1735336244260,-500.0,0.00010738,2]
[346872250,1735336244680,-500.0,0.00010738,2]
[346872251,1735336244703,-500.0,0.00010738,2]
[346872252,1735336244721,-500.0,0.00010738,2]
[346872253,1735336244731,-500.0,0.00010738,2]
[346872254,1735336244741,-500.0,0.00010738,2]
[346872255,1735336244751,-814.14,0.00010738,2]
[346872256,1735336244760,-500.0,0.00010738,2]
[346872257,1735336244770,-730.18,0.00010738,2]
[346872258,1735336244780,-500.0,0.00010738,2]
[346872259,1735336244789,-500.0,0.00010738,2]
[346872260,1735336244799,-500.0,0.00010738,2]
[346872261,1735336244809,-960.67,0.00010738,2]
[346872262,1735336244817,-688.13,0.00010738,2]
[346872263,1735336244826,-500.0,0.00010738,2]
[346872264,1735336244836,-625.0,0.00010738,2]
[346872265,1735336244845,-500.0,0.00010738,2]
[346872266,1735336244854,-500.0,0.00010738,2]
[346872267,1735336244864,-500.0,0.00010738,2]
[346872268,1735336244874,-500.0,0.00010738,2]
[346872269,1735336244883,-500.0,0.00010738,2]
[346872270,1735336244892,-500.0,0.00010738,2]
[346872271,1735336244902,-537.8,0.00010738,2]
[346872272,1735336244910,-500.0,0.00010738,2]
[346872273,1735336244920,-809.76,0.00010738,2]
[346872274,1735336244929,-500.0,0.00010738,2]
[346872275,1735336244939,-500.0,0.00010738,2]
[346872276,1735336244949,-500.0,0.00010738,2]
[346872277,1735336244959,-500.0,0.00010738,2]
[346872278,1735336244968,-951.53,0.00010738,2]
[346872279,1735336244977,-500.0,0.00010738,2]
[346872280,1735336244987,-500.0,0.00010738,2]
[346872281,1735336244996,-500.0,0.00010738,2]
[346872282,1735336245005,-526.65,0.00010738,2]
[346872283,1735336245014,-320.95473414,0.00010738,2]
[346872284,1735336245023,-500.0,0.00010738,2]
[346872285,1735336245032,-500.0,0.00010738,2]
[346872286,1735336245041,-500.0,0.00010738,2]
[346872287,1735336245050,-572.12,0.00010738,2]
[346872288,1735336245059,-852.62,0.00010738,2]
[346872289,1735336245068,-500.0,0.00010738,2]
[346872290,1735336245077,-500.0,0.00010738,2]
[346872291,1735336245087,-500.0,0.00010738,2]
[346872292,1735336245095,-669.16,0.00010738,2]
[346872293,1735336245104,-500.0,0.00010738,2]
[346872294,1735336245113,-500.0,0.00010738,2]
[346872295,1735336245123,-500.0,0.00010738,2]
[346872296,1735336245132,-1249.53,0.00010738,2]
[346872297,1735336245145,-500.0,0.00010738,2]
[346872298,1735336245154,-500.0,0.00010738,2]
[346872299,1735336245164,-500.0,0.00010738,2]
[346872300,1735336245173,-500.0,0.00010738,2]
[346872301,1735336245183,-1010.19,0.00010738,2]
[346872302,1735336245192,-500.0,0.00010738,2]
[346872303,1735336245200,-899.21,0.00010738,2]
[346872304,1735336245209,-500.0,0.00010738,2]
[346872305,1735336245219,-955.53,0.00010738,2]
[346872306,1735336245229,-500.0,0.00010738,2]
[346872307,1735336245238,-500.0,0.00010738,2]
[346872308,1735336245247,-675.8,0.00010738,2]
[346872309,1735336245256,-500.0,0.00010738,2]
[346872310,1735336245265,-251.09119243,0.00010738,2]
[346872311,1735336245275,-1659.52,0.00010738,2]
[346872312,1735336245283,-500.0,0.00010738,2]
[346872313,1735336245292,-500.0,0.00010738,2]
[346872314,1735336245301,-500.0,0.00010738,2]
[346872315,1735336245310,-565.96,0.00010738,2]
[346872316,1735336245319,-2114.0,0.00010738,2]
[346872317,1735336245328,-10774.56,0.00010738,2]
[346872318,1735336245337,-500.0,0.00010738,2]
[346872319,1735336245347,-500.0,0.00010738,2]
[346872320,1735336245356,-500.0,0.00010738,2]
[346872321,1735336245366,-500.0,0.00010738,2]
[346872322,1735336245376,-500.0,0.00010738,2]
[346872323,1735336245388,-500.0,0.00010738,2]
[346872324,1735336245399,-602.1,0.00010738,2]
[346872325,1735336245412,-500.0,0.00010738,2]
[346872326,1735336245421,-592.67,0.00010738,2]
[346872327,1735336245431,-500.0,0.00010738,2]
[346872328,1735336245440,-500.0,0.00010738,2]
[346872329,1735336245450,-500.0,0.00010738,2]
[346872330,1735336245459,-1083.23,0.00010738,2]
[346872331,1735336245468,-500.0,0.00010738,2]
[346872332,1735336245477,-1880.76,0.00010738,2]
[346872333,1735336245489,-541.17,0.00010738,2]
[346872334,1735336245498,-1044.48,0.00010738,2]
[346872335,1735336245507,-500.0,0.00010738,2]
[346872336,1735336245517,-500.0,0.00010738,2]
[346872337,1735336245526,-518.59,0.00010738,2]
[346872338,1735336245535,-5794.82,0.00010738,2]
[346872339,1735336245544,-500.0,0.00010738,2]
[346872340,1735336245554,-500.0,0.00010738,2]
[346872341,1735336245563,-500.0,0.00010738,2]
[346872342,1735336245572,-922.22,0.00010738,2]
[346872343,1735336245582,-1317.36,0.00010738,2]
[346872344,1735336245591,-1665.0,0.00010738,2]
[346872345,1735336245601,-500.0,0.00010738,2]
[346872346,1735336245611,-868.91,0.00010738,2]
[346872347,1735336245621,-564.22,0.00010738,2]
[346872348,1735336245630,-2374.65,0.00010738,2]
[346872349,1735336245641,-511.85,0.00010738,2]
[346872350,1735336245650,-1805.44,0.00010738,2]
[346872351,1735336245660,-619.78,0.00010738,2]
[346872352,1735336245669,-500.0,0.00010738,2]
[346872353,1735336245678,-500.0,0.00010738,2]
[346872354,1735336245687,-1146.64,0.00010738,2]
[346872355,1735336245696,-500.0,0.00010738,2]
[346872356,1735336245706,-524.2,0.00010738,2]
[346872357,1735336245715,-500.0,0.00010738,2]
[346872358,1735336245725,-500.0,0.00010738,2]
[346872359,1735336245734,-500.0,0.00010738,2]
[346872360,1735336245744,-2159.25,0.00010738,2]
[346872361,1735336245755,-506.33,0.00010738,2]
[346872362,1735336245765,-4157.24,0.00010738,2]
[346872363,1735336245775,-2208.58,0.00010738,2]
[346872364,1735336245785,-549.19,0.00010738,2]
[346872365,1735336245795,-500.0,0.00010738,2]
[346872366,1735336245804,-500.0,0.00010738,2]
[346872367,1735336245813,-500.0,0.00010738,2]
[346872368,1735336245823,-500.0,0.00010738,2]
[346872369,1735336245832,-818.86,0.00010738,2]
[346872370,1735336245841,-680.75,0.00010738,2]
[346872371,1735336245850,-987.63,0.00010738,2]
[346872372,1735336245861,-500.0,0.00010738,2]
[346872373,1735336245871,-686.54,0.00010738,2]
[346872374,1735336245881,-510.42,0.00010738,2]
[346872375,1735336245890,-1280.58,0.00010738,2]
[346872376,1735336245899,-500.0,0.00010738,2]
[346872377,1735336245908,-500.0,0.00010738,2]
[346872378,1735336245917,-715.73,0.00010738,2]
[346872379,1735336245927,-500.0,0.00010738,2]
[346872380,1735336245936,-2173.54,0.00010738,2]
[346872381,1735336245946,-675.24,0.00010738,2]
[346872382,1735336245955,-500.0,0.00010738,2]
[346872383,1735336245964,-518.2,0.00010738,2]
[346872384,1735336245974,-715.3,0.00010738,2]
[346872385,1735336245983,-1718.84,0.00010738,2]
[346872386,1735336245993,-1645.79,0.00010738,2]
[346872387,1735336246002,-500.0,0.00010738,2]
[346872388,1735336246011,-500.0,0.00010738,2]
[346872389,1735336246021,-919.56,0.00010738,2]
[346872390,1735336246030,-698.98,0.00010739,2]
[346872391,1735336246040,-1447.35,0.00010739,2]
[346872392,1735336246050,-1135.24,0.00010739,2]
[346872393,1735336246059,-500.0,0.00010739,2]
[346872394,1735336246069,-500.0,0.00010739,2]
[346872395,1735336246078,-1446.45,0.00010739,2]
[346872396,1735336246088,-522.04,0.00010739,2]
[346872397,1735336246097,-715.08,0.00010739,2]
[346872398,1735336246107,-500.0,0.00010739,2]
[346872399,1735336246122,-1586.47,0.00010739,2]
[346872400,1735336246131,-760.44,0.00010739,2]
[346872401,1735336246142,-1348.14,0.00010739,2]
[346872402,1735336246154,-2379.61,0.00010739,2]
[346872404,1735336246164,-1539.31,0.00010739,2]
[346872405,1735336246173,-6514.22,0.00010739,2]
[346872406,1735336246184,-4583.19,0.00010739,2]
[346872407,1735336246193,-500.0,0.00010739,2]
[346872409,1735336246202,-601.41,0.00010739,2]
[346872410,1735336246211,-500.0,0.00010739,2]
[346872411,1735336246220,-588.01,0.00010739,2]
[346872412,1735336246230,-521.44,0.00010739,2]
[346872414,1735336246239,-500.0,0.00010739,2]
[346872415,1735336246248,-584.63,0.00010739,2]
[346872416,1735336246257,-500.0,0.00010739,2]
[346872417,1735336246267,-1892.34,0.00010739,2]
[346872419,1735336246276,-610.67,0.00010739,2]
[346872420,1735336246285,-500.0,0.00010739,2]
[346872421,1735336246294,-500.0,0.00010739,2]
[346872423,1735336246303,-500.0,0.00010739,2]
[346872424,1735336246313,-507.02,0.00010739,2]
[346872425,1735336246322,-500.0,0.00010739,2]
[346872426,1735336246331,-9987.57,0.00010739,2]
[346872428,1735336246340,-500.0,0.00010739,2]
[346872429,1735336246350,-633.36,0.00010739,2]
[346872430,1735336246359,-500.0,0.00010739,2]
[346872431,1735336246369,-500.0,0.00010739,2]
[346872432,1735336246378,-500.0,0.00010739,2]
[346872433,1735336246388,-500.0,0.00010739,2]
[346872435,1735336246397,-694.31,0.00010739,2]
[346872436,1735336246407,-500.0,0.00010739,2]
[346872437,1735336246416,-681.38,0.00010739,2]
[346872438,1735336246426,-500.0,0.00010739,2]
[346872439,1735336246435,-500.0,0.00010739,2]
[346872440,1735336246444,-500.0,0.00010739,2]
[346872441,1735336246453,-765.4,0.00010739,2]
[346872442,1735336246464,-500.0,0.00010739,2]
[346872443,1735336246473,-803.37,0.00010739,2]
[346872444,1735336246483,-500.0,0.00010739,2]
[346872445,1735336246492,-502.16,0.00010739,2]
[346872447,1735336246502,-500.0,0.00010739,2]
[346872448,1735336246511,-732.69,0.00010739,2]
[346872450,1735336246520,-500.0,0.00010739,2]
[346872452,1735336246529,-500.0,0.00010739,2]
[346872454,1735336246538,-500.0,0.00010739,2]
[346872457,1735336246547,-659.83,0.00010739,2]
[346872459,1735336246557,-500.0,0.00010739,2]
[346872461,1735336246566,-1366.87,0.00010739,2]
[346872463,1735336246574,-500.0,0.00010739,2]
[346872465,1735336246583,-595.6,0.00010739,2]
[346872467,1735336246592,-500.0,0.00010739,2]
[346872469,1735336246600,-500.0,0.00010739,2]
[346872471,1735336246610,-500.0,0.00010739,2]
[346872473,1735336246618,-609.19,0.00010739,2]
[346872475,1735336246628,-1051.26,0.00010739,2]
[346872476,1735336246637,-805.68,0.00010739,2]
[346872478,1735336246646,-557.4,0.00010739,2]
[346872479,1735336246655,-791.28,0.00010739,2]
[346872480,1735336246664,-500.0,0.00010739,2]
[346872481,1735336246673,-1126.95,0.00010739,2]
[346872482,1735336246682,-731.1,0.00010739,2]
[346872483,1735336246692,-752.15,0.00010739,2]
[346872484,1735336246701,-500.0,0.00010739,2]
[346872485,1735336246711,-1550.85,0.00010739,2]
[346872486,1735336246720,-500.0,0.00010739,2]
[346872487,1735336246729,-601.57,0.00010739,2]
[346872488,1735336246738,-7603.11,0.00010739,2]
[346872489,1735336246747,-690.9,0.00010739,2]
[346872490,1735336246756,-927.58,0.00010739,2]
[346872491,1735336246765,-799.923696,0.00010739,2]
[346872492,1735336246773,-1058.16,0.00010739,2]
[346872493,1735336246782,-638.13,0.00010739,2]
[346872494,1735336246790,-693.37187,0.00010739,2]
[346872495,1735336246799,-500.0,0.00010739,2]
[346872496,1735336246808,-1010.75,0.00010739,2]
[346872497,1735336246817,-3832.11,0.00010739,2]
[346872498,1735336246826,-559.24,0.00010739,2]
[346872499,1735336246835,-1002.16,0.00010739,2]
[346872500,1735336246844,-1522.12,0.00010739,2]
[346872501,1735336246852,-759.49,0.00010739,2]
[346872502,1735336246862,-1655.0,0.00010739,2]
[346872503,1735336246871,-592.24,0.00010739,2]
[346872504,1735336246880,-660.86,0.00010739,2]
[346872505,1735336246889,-1674.62,0.00010739,2]
[346872506,1735336246898,-500.0,0.00010739,2]
[346872507,1735336246907,-368.5,0.00010739,2]
[346872508,1735336246916,-599.88,0.00010739,2]
[346872509,1735336246925,-3239.99,0.00010739,2]
[346872510,1735336246934,-3517.2,0.00010739,2]
[346872511,1735336246943,-500.0,0.00010739,2]
[346872512,1735336246952,-500.0,0.00010739,2]
[346872513,1735336246962,-935.57,0.00010739,2]
[346872514,1735336246971,-1678.05,0.00010739,2]
[346872515,1735336246981,-3183.31,0.00010739,2]
[346872516,1735336246991,-854.24,0.00010739,2]
[346872517,1735336247000,-5065.71,0.00010739,2]
[346872518,1735336247009,-2239.0,0.00010739,2]
[346872519,1735336247018,-525.3,0.00010739,2]
[346872520,1735336247028,-957.86,0.00010739,2]
[346872522,1735336247037,-818.32,0.00010739,2]
[346872524,1735336247047,-1701.48,0.00010739,2]
[346872525,1735336247056,-615.44,0.00010739,2]
[346872526,1735336247065,-1122.53,0.00010739,2]
[346872527,1735336247074,-855.23,0.00010739,2]
[346872528,1735336247083,-4580.88,0.00010739,2]
[346872529,1735336247092,-1041.51,0.00010739,2]
[346872530,1735336247101,-1925.05,0.00010739,2]
[346872531,1735336247111,-2926.65,0.00010739,2]
[346872532,1735336247121,-530.09,0.00010739,2]
[346872533,1735336247130,-1652.43,0.00010739,2]
[346872534,1735336247140,-506.96,0.00010739,2]
[346872535,1735336247151,-606.93,0.00010739,2]
[346872536,1735336247160,-1414.13,0.00010739,2]
[346872537,1735336247170,-999.73,0.00010739,2]
[346872538,1735336247179,-2362.14,0.00010739,2]
[346872539,1735336247190,-821.05,0.00010739,2]
[346872540,1735336247199,-7044.73,0.00010739,2]
[346872541,1735336247209,-686.27,0.00010739,2]
[346872542,1735336247219,-500.0,0.00010739,2]
[346872543,1735336247232,-646.97,0.00010739,2]
[346872544,1735336247241,-500.0,0.00010739,2]
[346872545,1735336247251,-2139.42,0.00010739,2]
[346872546,1735336247259,-1232.83,0.00010739,2]
[346872547,1735336247269,-900.32,0.00010739,2]
[346872548,1735336247278,-619.54,0.00010739,2]
[346872549,1735336247288,-2506.77,0.00010739,2]
[346872550,1735336247297,-556.85,0.00010739,2]
[346872551,1735336247307,-1299.63,0.0001074,2]
[346872552,1735336247316,-569.4,0.0001074,2]
[346872553,1735336247326,-500.0,0.0001074,2]
[346872554,1735336247336,-906.66,0.0001074,2]
[346872555,1735336247346,-500.0,0.0001074,2]
[346872556,1735336247355,-1024.73,0.0001074,2]
[346872557,1735336247365,-598.13,0.0001074,2]
[346872558,1735336247376,-737.59,0.0001074,2]
[346872559,1735336247385,-985.21,0.0001074,2]
[346872560,1735336247394,-724.58,0.0001074,2]
[346872561,1735336247403,-567.32,0.0001074,2]
[346872562,1735336247412,-726.25,0.0001074,2]
[346872563,1735336247422,-615.69,0.0001074,2]
[346872564,1735336247431,-1708.12,0.0001074,2]
[346872565,1735336247441,-1184.29,0.0001074,2]
[346872566,1735336247450,-548.56,0.0001074,2]
[346872567,1735336247459,-1426.63,0.0001074,2]
[346872568,1735336247469,-553.77,0.0001074,2]
[346872569,1735336247479,-780.99,0.0001074,2]
[346872570,1735336247489,-776.14,0.0001074,2]
[346872571,1735336247498,-500.0,0.0001074,2]
[346872572,1735336247507,-1224.21,0.0001074,2]
[346872573,1735336247516,-500.0,0.0001074,2]
[346872574,1735336247525,-520.15,0.0001074,2]
[346872575,1735336247534,-716.45,0.0001074,2]
[346872576,1735336247546,-16046.69,0.00010741,2]
[346872577,1735336247555,-620.78,0.00010741,2]
[346872578,1735336247565,-2041.8,0.00010741,2]
[346872579,1735336247574,-1627.58,0.00010741,2]
[346872580,1735336247584,-1382.57,0.00010741,2]
[346872581,1735336247594,-3200.02,0.00010741,2]
[346872582,1735336247603,-510.79,0.00010741,2]
[346872583,1735336247612,-1065.28,0.00010741,2]
[346872584,1735336247622,-1200.97,0.00010741,2]
[346872585,1735336247631,-868.67,0.00010741,2]
[346872586,1735336247641,-3048.93,0.00010741,2]
[346872587,1735336247650,-2042.82,0.00010741,2]
[346872588,1735336247660,-700.0,0.000108,3]
[346872589,1735336247669,-1100.0,0.000109,3]
[346872590,1735336247679,-209.26861642,0.000109,2]
[346872591,1735336247688,-209.26861641,0.000109,2]
[346872592,1735336247698,-638.96087456,0.00010913,2]
[346872593,1735336247707,-1266.0,0.00010934,2]
[346872594,1735336247716,-2012.0,0.00010934,2]
[346872595,1735336247725,-633.0,0.00010934,2]
[346872596,1735336247735,-565.0,0.00010934,2]
[346872597,1735336247744,-150.0,0.00010934,2]
[346872598,1735336247754,-1900.0,0.00010934,2]
[346872599,1735336247763,-1256.0,0.00010934,2]
[346872600,1735336247773,-921.0,0.00010934,2]
[346872601,1735336247782,-3772.0,0.00010934,2]
[346872602,1735336247792,-819.0,0.00010934,2]
[346872603,1735336247801,-3685.0,0.00010934,2]
[346872604,1735336247810,-536.0,0.00010934,2]
[346872605,1735336247820,-3889.0,0.00010934,2]
[346872606,1735336247830,-1171.0,0.00010934,2]
[346872607,1735336247839,-150.0,0.00010934,2]
[346872608,1735336247848,-9600.0,0.00010934,2]
[346872609,1735336247858,-450.964,0.0001098,2]
[346872610,1735336247867,-500.0,0.00011012,2]
[346872611,1735336247878,-513.86,0.00011012,2]
[346872612,1735336247887,-500.0,0.00011012,2]
[346872613,1735336247896,-500.0,0.00011012,2]
[346872614,1735336247906,-500.0,0.00011012,2]
[346872615,1735336247915,-500.0,0.00011012,2]
[346872616,1735336247925,-500.0,0.00011012,2]
[346872617,1735336247934,-523.19,0.00011012,2]
[346872618,1735336247944,-500.0,0.00011012,2]
[346872619,1735336247953,-517.22,0.00011012,2]
[346872620,1735336247963,-500.0,0.00011012,2]
[346872621,1735336247972,-500.0,0.00011012,2]
[346872622,1735336247982,-500.0,0.00011012,2]
[346872623,1735336247991,-500.0,0.00011012,2]
[346872624,1735336248000,-500.0,0.00011012,2]
[346872625,1735336248010,-500.0,0.00011012,2]
[346872626,1735336248019,-500.0,0.00011012,2]
[346872627,1735336248028,-641.74,0.00011012,2]
[346872628,1735336248038,-524.58,0.00011012,2]
[346872629,1735336248047,-500.0,0.00011012,2]
[346872630,1735336248057,-500.0,0.00011012,2]
[346872631,1735336248066,-500.0,0.00011012,2]
[346872632,1735336248075,-777.86,0.00011012,2]
[346872633,1735336248085,-500.0,0.00011012,2]
[346872634,1735336248095,-656.88,0.00011012,2]
[346872635,1735336248104,-500.0,0.00011012,2]
[346872636,1735336248114,-500.0,0.00011012,2]
[346872637,1735336248316,-500.0,0.00011012,2]
[346872638,1735336248326,-500.0,0.00011012,2]
[346872639,1735336248335,-500.0,0.00011012,2]
[346872640,1735336248345,-500.0,0.00011012,2]
[346872641,1735336248355,-500.0,0.00011012,2]
[346872642,1735336248365,-500.0,0.00011012,2]
[346872643,1735336248375,-500.0,0.00011012,2]
[346872644,1735336248385,-500.0,0.00011012,2]
[346872645,1735336248395,-500.0,0.00011012,2]
[346872646,1735336248404,-500.0,0.00011012,2]
[346872647,1735336248414,-500.0,0.00011012,2]
[346872648,1735336248424,-500.0,0.00011012,2]
[346872649,1735336248434,-500.0,0.00011012,2]
[346872650,1735336248444,-628.28,0.00011012,2]
[346872651,1735336248454,-500.0,0.00011012,2]
[346872652,1735336248463,-500.0,0.00011012,2]
[346872653,1735336248473,-500.0,0.00011012,2]
[346872654,1735336248483,-500.0,0.00011012,2]
[346872655,1735336248492,-500.0,0.00011012,2]
[346872656,1735336248502,-643.04,0.00011012,2]
[346872657,1735336248512,-500.0,0.00011012,2]
[346872658,1735336248522,-500.0,0.00011012,2]
[346872659,1735336248532,-500.0,0.00011012,2]
[346872660,1735336248541,-500.0,0.00011012,2]
[346872661,1735336248551,-739.17,0.00011012,2]
[346872662,1735336248561,-504.48,0.00011012,2]
[346872663,1735336248572,-500.0,0.00011012,2]
[346872664,1735336248582,-500.0,0.00011012,2]
[346872665,1735336248592,-500.0,0.00011012,2]
[346872666,1735336248603,-647.03,0.00011012,2]
[346872667,1735336248613,-1024.8,0.00011012,2]
[346872668,1735336248623,-500.0,0.00011012,2]
[346872669,1735336248633,-500.0,0.00011012,2]
[346872670,1735336248642,-500.0,0.00011012,2]
[346872671,1735336248651,-459.74270107,0.00011012,2]
[346872672,1735336248661,-500.0,0.00011012,2]
[346872673,1735336248671,-884.78,0.00011012,2]
[346872674,1735336248682,-500.0,0.00011012,2]
[346872675,1735336248693,-534.19,0.00011012,2]
[346872676,1735336248707,-500.0,0.00011012,2]
[346872677,1735336248717,-619.0,0.00011012,2]
[346872678,1735336248727,-642.43,0.00011012,2]
[346872679,1735336248737,-647.9,0.00011012,2]
[346872680,1735336248747,-529.8,0.00011012,2]
[346872681,1735336248756,-500.0,0.00011012,2]
[346872682,1735336248766,-619.96,0.00011012,2]
[346872683,1735336248775,-697.56,0.00011012,2]
[346872684,1735336248785,-500.0,0.00011012,2]
[346872685,1735336248795,-500.0,0.00011012,2]
[346872686,1735336248805,-644.16,0.00011012,2]
[346872687,1735336248815,-851.46,0.00011012,2]
[346872688,1735336248825,-657.13,0.00011012,2]
[346872689,1735336248835,-500.0,0.00011012,2]
[346872690,1735336248844,-500.0,0.00011012,2]
[346872691,1735336248854,-519.03,0.00011012,2]
[346872692,1735336248864,-500.0,0.00011012,2]
[346872693,1735336248876,-500.0,0.00011012,2]
[346872694,1735336248886,-500.0,0.00011012,2]
[346872695,1735336248896,-500.0,0.00011012,2]
[346872696,1735336248905,-500.0,0.00011012,2]
[346872697,1735336248916,-500.0,0.00011012,2]
[346872698,1735336248926,-500.0,0.00011012,2]
[346872699,1735336248936,-603.78,0.00011012,2]
[346872700,1735336248946,-901.23,0.00011012,2]
[346872701,1735336248956,-500.0,0.00011012,2]
[346872702,1735336248966,-500.0,0.00011012,2]
[346872703,1735336248976,-640.42,0.00011012,2]
[346872704,1735336248987,-562.23,0.00011012,2]
[346872705,1735336248997,-500.0,0.00011012,2]
[346872706,1735336249008,-500.0,0.00011012,2]
[346872707,1735336249018,-500.0,0.00011012,2]
[346872708,1735336249029,-500.0,0.00011012,2]
[346872709,1735336249039,-500.0,0.00011012,2]
[346872710,1735336249049,-814.14,0.00011012,2]
[346872711,1735336249059,-500.0,0.00011012,2]
[346872712,1735336249069,-730.18,0.00011012,2]
[346872713,1735336249078,-500.0,0.00011012,2]
[346872714,1735336249088,-500.0,0.00011012,2]
[346872715,1735336249098,-500.0,0.00011012,2]
[346872716,1735336249107,-960.67,0.00011012,2]
[346872717,1735336249117,-688.13,0.00011012,2]
[346872718,1735336249127,-500.0,0.00011012,2]
[346872719,1735336249138,-625.0,0.00011012,2]
[346872720,1735336249149,-500.0,0.00011012,2]
[346872721,1735336249159,-500.0,0.00011012,2]
[346872722,1735336249169,-500.0,0.00011012,2]
[346872723,1735336249179,-500.0,0.00011012,2]
[346872724,1735336249190,-500.0,0.00011012,2]
[346872725,1735336249200,-500.0,0.00011012,2]
[346872726,1735336249209,-537.8,0.00011012,2]
[346872727,1735336249220,-500.0,0.00011012,2]
[346872728,1735336249230,-809.76,0.00011012,2]
[346872729,1735336249240,-500.0,0.00011012,2]
[346872730,1735336249250,-500.0,0.00011012,2]
[346872731,1735336249259,-500.0,0.00011012,2]
[346872732,1735336249269,-500.0,0.00011012,2]
[346872733,1735336249279,-951.53,0.00011012,2]
[346872734,1735336249288,-500.0,0.00011012,2]
[346872735,1735336249298,-500.0,0.00011012,2]
[346872736,1735336249308,-500.0,0.00011012,2]